{"text_format":"2","workbook":"xlsx","n_sheets":3,"sheets":["SLP","RLM","Preisblätter"],"not_rendered":{"charts":0,"images":2,"macros":0,"external_links":2,"defined_names":0,"comments":0,"pivot_tables":0},"unopened":[],"bounds":{"document_bytes":16777216,"sheet_cells":100000,"run_cost":"one","rows_first":2000,"rows_last":500,"rows_between":2000,"halvings":0,"cell_chars":16384,"cell_head_chars":4096},"cells_cut":0,"cells_raw":0,"read":"whole","date_system":"1900"}

{"sheet":"SLP","index":0,"n_rows":30,"n_cols":9,"rows_kept":30,"cut":false,"hidden":false,"merged":[[2,1,3,2]]}
[]
[null,"Netzentgeltrechner SLP 2024"]
[null,"Für Kunden im Niederspannungsnetz ohne Lastgangzählung (ausgenommen Wärmepumpentarif und Elektromobilität)"]
[]
[]
[]
[null,"Bitte befüllen Sie die grünen Eingabefelder, um ihr prognostiziertes Netzentgelt zu ermitteln. "]
[{"$nulls":8},"Hinweis:"]
[null,"Jahresarbeit",null,null,null,4142,null,null,"1 Personenhaushalt entspricht ca. 1500 kWh"]
[{"$nulls":8},"2 Personenhaushalt entspricht ca. 2500 kWh"]
[null,"Grundpreis €/a  netto",null,null,null,{"$f":"'[1]Tarifblatt (Neu)'!$C$39","v":78},null,null,"3 Personenhaushalt entspricht ca. 3500 kWh"]
[null,"Arbeitspreis ct/kWh netto",null,null,null,{"$f":"'[2]Tarifblatt (Neu)'!$E$39","v":9.0094922643272692},null,null,"4 Personenhaushalt entspricht ca. 4250 kWh"]
[{"$nulls":8},"5 Personenhaushalt entspricht ca. 5000 kWh"]
[null,"Jahresentgelt exklusive Messung netto",null,null,null,{"$f":"F12/100*F9+F11","v":451.17316958843548}]
[]
[]
[null,"Messstellenbetrieb","€/Jahr netto","\"X\" eintragen, wenn zutreffend"]
[]
[null,"Eintarifzähler",8.58,"x",null,{"$f":"IF(AND(D19=\"x\",D21<>\"x\"),C19,0)","v":8.58}]
[]
[null,"Zweitarifzähler (inkl. Tarifschaltung)",9.6199999999999992,null,null,{"$f":"IF(AND(D21=\"x\",D19<>\"x\"),C21,0)","v":0}]
[]
[null,"EDL21 nach § 21b (3a) und (3b) EnWG a.F. (übergangsweise)",16.809999999999999,null,null,{"$f":"IF(D23=\"x\",C23,0)","v":0}]
[]
[null,"Wandler Niederspannung",23.5,null,null,0]
[]
[null,"Kundendienstrelais",55,null,null,0]
[{"$nulls":5},{"$f":"SUM(F19:F27)","v":8.58}]
[]
[null,"Jahresentgelt inklusive Messung netto",null,null,null,{"$f":"SUM(F28,F14)","v":459.75316958843547}]

{"sheet":"RLM","index":1,"n_rows":40,"n_cols":6,"rows_kept":40,"cut":false,"hidden":false,"merged":[]}
[]
[null,"Netzentgeltrechner RLM 2024"]
[]
[]
[]
[null,"Bitte befüllen Sie die grünen Eingabefelder, um ihr prognostiziertes Netzentgelt zu ermitteln. "]
[]
[null,"Spannungsebene",null,"bitte auswählen",null,"Niederspannung"]
[]
[null,"Arbeit",null,null,null,50000]
[]
[null,"Jahresmaximalleistung",null,null,null,80]
[]
[null,"Benutzungsstunden",null,null,null,{"$f":"F10/F12","v":625}]
[]
[null,"Arbeispreis ct/kWh netto",null,null,null,{"$f":"IF(AND(F14<=2500,(F8=\"Niederspannung\")),Preisblätter!D10,IF(AND(F14<=2500,(F8=\"Umspannung NS\")),Preisblätter!D9,IF(AND(F14<=2500,(F8=\"Mittelspannung\")),Preisblätter!D8,IF(AND(F14>=2500,(F8=\"Niederspannung\")),Preisblätter!F10,IF(AND(F14>=2500,(F8=\"Umspannung NS\")),Preisblätter!F9,IF(AND(F14>=2500,(F8=\"Mittelspannung\")),Preisblätter!F8,))))))","v":6.7982791935422897}]
[]
[null,"Leistungspreis €/kWa netto",null,null,null,{"$f":"IF(AND(F14<=2500,(F8=\"Niederspannung\")),Preisblätter!C10,IF(AND(F14<=2500,(F8=\"Umspannung NS\")),Preisblätter!C9,IF(AND(F14<=2500,(F8=\"Mittelspannung\")),Preisblätter!C8,IF(AND(F14>=2500,(F8=\"Niederspannung\")),Preisblätter!E10,IF(AND(F14>=2500,(F8=\"Umspannung NS\")),Preisblätter!E9,IF(AND(F14>=2500,(F8=\"Mittelspannung\")),Preisblätter!E8,))))))","v":32.3621666173864}]
[]
[null,"Jahresentgelt ohne Messung netto",null,null,null,{"$f":"F16/100*F10+F18*F14","v":23625.493732637642}]
[]
[]
[null,"Messstellenbetrieb","€/Jahr netto","\"X\" eintragen, wenn zutreffend"]
[]
[null,"Umspannung HS/MS",349.48,null,null,{"$f":"IF(D25=\"x\",C25,0)","v":0}]
[{"$nulls":5},{"$f":"IF(D26=\"x\",C26,0)","v":0}]
[null,"Mittelspannung",349.48,null,null,0]
[{"$nulls":5},0]
[null,"Umspannung MS/NS",294.74,null,null,0]
[{"$nulls":5},0]
[null,"Niederspannung",294.74,null,null,0]
[{"$nulls":5},0]
[null,"Wandler Mittelspannung",95.38,null,null,0]
[{"$nulls":5},0]
[null,"Wandler Niederspannung",23.5,null,null,0]
[{"$nulls":5},0]
[null,"TK-Einrichtung für Fernauslesung",73.89,null,null,0]
[{"$nulls":5},{"$f":"SUM(F25:F37)","v":0}]
[]
[null,"Jahresentgelt inklusive Messung netto",null,null,null,{"$f":"SUM(F38,F20)","v":23625.493732637642}]

{"sheet":"Preisblätter","index":2,"n_rows":27,"n_cols":10,"rows_kept":27,"cut":false,"hidden":true,"merged":[[3,1,6,1],[3,2,4,3],[3,4,4,5],[5,2,6,2],[5,3,6,3],[5,4,6,4],[5,5,6,5],[23,1,24,1],[23,2,24,2],[23,3,24,3],[13,1,14,1],[13,2,14,2],[13,3,14,3],[18,1,19,1],[18,2,19,2],[18,3,19,3]]}
[]
["Preise für die Nutzung der Netzinfrastruktur für Kunden mit Leistungsmessung (RLM)"]
[{"$nulls":7},"Messstellenbetrieb","€/Jahr netto","€/Jahr brutto²"]
[null,"Art der Entnahmestelle","Jahresbenutzungsdauer\n< 2.500 Vollbenutzungsstunden",null,"Jahresbenutzungsdauer\n≥ 2.500 Vollbenutzungsstunden",null,null,"Umspannung HS/MS",349.48,{"$f":"I4*119%","v":415.88119999999998}]
[{"$nulls":7},"Mittelspannung",349.48,{"$f":"I5*119%","v":415.88119999999998}]
[null,null,"Leistungspreis\n€/kWa","Arbeitspreis\nct/kWh","Leistungspreis\n€/kWa","Arbeitspreis\nct/kWh",null,"Umspannung MS/NS",294.74,350.74059999999997]
[{"$nulls":7},"Niederspannung",294.74,{"$f":"I7*119%","v":350.74059999999997}]
[null,"Mittelspannung",26.8185858833506,7.6164783908715998,196.880979689339,0.81398263863205,null,"Wandler Mittelspannung",95.38,113.50219999999999]
[null,"Umspannung NS",31.328156062635685,7.5688825047328097,183.51693515643399,1.4813313409808599,null,"Wandler Niederspannung",23.5,27.965]
[null,"Niederspannung",32.3621666173864,6.7982791935422897,153.87564816604001,1.9377399315961199,null,"TK-Einrichtung für Fernauslesung",73.89,87.929099999999991]
[]
["Preise für die Nutzung der Netzinfrastruktur für Kunden mit Wirkarbeitszählung (SLP)"]
[]
[null,"Kunde im Niederspannungsnetz ohne Lastgangzählung","netto","brutto²",null,null,null,"Messstellenbetrieb","€/Jahr netto","€/Jahr brutto²"]
[{"$nulls":7},"Eintarifzähler",8.58,{"$f":"I15*119%","v":10.2102}]
[null,"Grundpreis €/a",78,92.82,null,null,null,"Zweitarifzähler \n(inkl. Tarifschaltung)",9.6199999999999992,{"$f":"I16*119%","v":11.447799999999999}]
[null,"Arbeitspreis ct/kWh",9.0094922643272692,10.72129579454945,null,null,null,"EDL21 nach § 21b (3a) und (3b) EnWG a.F. (übergangsweise)",16.809999999999999,20.003899999999998]
[{"$nulls":7},"Wandler Niederspannung",23.5,27.965]
[null,"Entnahme durch Elektro-Speicherheizung / Wärmepumpe","netto","brutto²",null,null,null,"Kundendienstrelais",55,65.45]
[]
[null,"Grundpreis €/a",78,92.82]
[null,"Arbeitspreis ct/kWh",3.6037969057309081,4.2885183178197801]
[]
[null,"Entnahme durch Elektromobilität","netto","brutto²"]
[]
[null,"Grundpreis €/a",78,92.82]
[null,"Arbeitspreis ct/kWh",6.9373090435319975,8.2553977618030761]